Cogmind - Beta 17.1 @@@ ROGUE MODE // 2026.09.14 @ 20:08:11 Player: 7H-NLC Result: Destroyed by D0-P8G(R) with Subdweller Shrapnel Launcher Performance ------------- Evolutions (0) 0 Regions Visited (2) 400 Robots Destroyed (25) 125 Value Destroyed (600) 600 Prototype IDs (14) 280 Alien Tech Used (0) 0 Bonus (-14) -14 TOTAL SCORE: 1391 Bonus ------- Friendly Fire -14 Cogmind --------- Core Integrity 0/250 Matter 248/300 Energy 194/200 System Corruption 1% Temperature Cool (0) Movement Treading (160) Location -10/Subcaves Parts ------- > --- POWER (1) -------- Subdweller Power Source > --- PROPULSION (2) --- Light Treads Spiked Treads > --- UTILITY (2) ------ Medium Storage Unit Makeshift Light Armor Plating > --- WEAPON (2) ------- Ripper Makeshift Axe > --- INVENTORY (10) --- Medium Matter Pod (100) Seismic Detector Scrap Shield Subdweller Beam Cannon Subdweller Machine Gun Barrage Gun Subdweller Shrapnel Launcher Subdweller Shrapnel Launcher Multitool Peak State ------------ > --- POWER ------------ Subdweller Power Source > --- PROPULSION ------- Light Treads Spiked Treads > --- UTILITY ---------- Medium Storage Unit Makeshift Light Armor Plating > --- WEAPON ----------- Barrage Gun Ripper > --- INVENTORY -------- Medium Matter Pod Seismic Detector Scrap Shield Subdweller Beam Cannon Subdweller Machine Gun Subdweller Shrapnel Launcher Subdweller Shrapnel Launcher Multitool Makeshift Axe [Rating: 19] Favorites ----------- Power Subdweller Power Source Engine Subdweller Power Source Propulsion Light Treads Treads Light Treads Leg Makeshift Leg Utility Medium Storage Unit Device Seismic Detector Storage Medium Storage Unit Protection Makeshift Light Armor Plating Weapon Barrage Gun Ballistic Gun Barrage Gun Ballistic Cannon Battle Cannon Launcher Subdweller Shrapnel Launcher Special Weapon Mining Laser Slashing Weapon Ripper Build | -11 -10 -10 ------- Run | Yrd Mat Sub Slots Evolved . | . . . Power . | . . . Propulsion . | . . . Utility . | . . . Weapon . | . . . Parts Attached 35 | 6 1 28 Power 8 | 1 . 7 Engine 8 | 1 . 7 Core . | . . . Reactor . | . . . Propulsion 7 | 2 . 5 Treads 5 | 2 . 3 Leg 2 | . . 2 Wheel . | . . . Hover . | . . . Flight . | . . . Utility 5 | 1 1 3 Device 1 | . . 1 Storage 3 | 1 1 1 Processor . | . . . Hackware . | . . . Protection 1 | . . 1 Artifact . | . . . Weapon 15 | 2 . 13 Energy Gun . | . . . Energy Cannon . | . . . Ballistic Gun 7 | 2 . 5 Ballistic Cannon 1 | . . 1 Launcher 3 | . . 3 Special Weapon 1 | . . 1 Impact Weapon . | . . . Slashing Weapon 3 | . . 3 Piercing Weapon . | . . . Special Melee Weapon . | . . . Unidentified Prototypes . | . . . Parts Lost 4 | . . 4 Power 2 | . . 2 Propulsion 1 | . . 1 Utility . | . . . Weapon 1 | . . 1 Highest Loss Streak 1 | . . 1 To Critical Strikes 1 | . . 1 Average Backups 8 | 2 6 8 Power . | . . . Propulsion . | . 2 . Utility 2 | 1 3 2 Weapon 3 | . 1 4 Tool/Special . | . . . Unused Backups 10 | 1 . 9 Power . | . . . Propulsion 2 | . . 2 Utility 5 | 1 . 4 Weapon 2 | . . 2 Tool/Special 1 | . . 1 Average Slot Usage (%) 97 | . 96 97 Engine 11 | . 14 11 Treads 27 | . 28 27 Device 11 | . . 12 Storage 15 | . 24 14 Ballistic Gun 21 | . 28 20 Ballistic Cannon 2 | . . 2 Launcher 1 | . . 1 Slashing Weapon 2 | . . 3 Peak Build Rating 19 | 6 7 19 Average Rating 11 | 5 6 12 On Entrance 4 | . 6 7 Avg Prop Armor Cover (%) 7 | . . 7 Naked Turns . | . . . Heaviest Build 27 | 13 23 27 Greatest Support 40 | 40 40 40 Greatest Overweight (x) 3 | 3 . . Average Overweight (x) . | . . . Largest Inventory Capacity 10 | 8 10 10 Average Capacity 9 | 7 9 10 Most Carried 10 | 5 8 10 Average Carried 9 | 2 6 9 Final Capacity 10 | 8 10 10 Final Carried 10 | 5 8 10 Class Distribution -------------------- 49% | Mutant 47% | Scavenger-Mutant Dominant Class ---------------- Mutant | -10/Materials Scavenger-Mutant | -10/Subcaves Resources | -11 -10 -10 ----------- Run | Yrd Mat Sub Matter Collected 1100 | 388 22 690 Remotely . | . . . Salvage Created 747 | 169 52 526 Parts 69 | 15 5 49 Haulers Intercepted 1 | . 1 . Recyclers Shooed 1 | 1 . . Parts Field Recycled . | . . . Retrieved Matter . | . . . Parts Self-Destructed 24 | . . 24 Prevented . | . . . Parts Restored . | . . . Kills | -11 -10 -10 ------- Run | Yrd Mat Sub Combat Hostiles Destroyed 18 | . . 18 Melee 2 | . . 2 Guns 10 | . . 10 Cannons 2 | . . 2 AOE 4 | . . 4 Classes Destroyed 9 | 3 1 5 Worker 2 | 2 . . Tunneler 3 | 3 . . Hauler 1 | . 1 . Recycler 1 | 1 . . Swarmer 5 | . . 5 Grunt 1 | . . 1 Sentry 1 | . . 1 Artisan 1 | . . 1 Subdweller 11 | . . 11 Best Kill Streak 3 | 3 1 3 Combat Bots Only 3 | . . 3 Max Kills in Single Turn 1 | 1 1 1 Gunslinging . | . . . Exploded 1 | . . 1 Melee 1 | . . 1 Uniques/NPCs Destroyed . | . . . Combat | -11 -10 -10 -------- Run | Yrd Mat Sub Hostile Shots Fired 79 | . 8 71 Missed 30 | . 4 26 Hits 49 | . 4 45 Projectile 49 | . 4 45 AOE 5 | . . 5 Critical Strikes 1 | . . 1 Damage Taken 1438 | . 75 1363 Core 257 | . . 257 Absorbed by Shields . | . . . Core Remaining (%) 100 | 100 . . Volleys Fired 69 | 15 3 51 Largest 2 | 2 2 2 Hottest 100 | 40 40 100 Shots Fired 118 | 30 6 82 Gun 92 | 30 6 56 Cannon 12 | . . 12 Launcher 8 | . . 8 Special 6 | . . 6 Kinetic 109 | 30 6 73 Thermal 6 | . . 6 Explosive 3 | . . 3 Electromagnetic . | . . . Robot Hit Streak 25 | 6 4 25 Robot Miss Streak 4 | 4 1 2 Penetration Max . | . . . Secondary Targets . | . . . Shots Hit Robots 81 | 18 4 59 Core Hits 38 | 8 2 28 Critical Kills . | . . . Critical Parts Destroyed . | . . . Critical Strikes 1 | . . 1 Blast 1 | . . 1 Melee Attacks 41 | . . 41 Impact . | . . . Slashing 41 | . . 41 Piercing . | . . . Sneak Attacks 1 | . . 1 Combat Hostiles . | . . . Follow-up Attacks . | . . . Damage Inflicted 1636 | 187 56 1393 Guns 813 | 187 56 570 Cannons 97 | . . 97 Explosions 585 | . . 585 Melee 141 | . . 141 Ramming . | . . . Kinetic 1344 | 187 56 1101 Thermal . | . . . Explosive 151 | . . 151 Electromagnetic . | . . . Impact . | . . . Slashing 141 | . . 141 Piercing . | . . . Highest Corruption 1 | . . 1 Average Corruption 1 | . . 1 Corruption Purged . | . . . Corruption Blocked . | . . . Effects 20 | . . 20 Message Errors 6 | . . 6 Matter Fused 4 | . . 4 Heat Flow Errors 1 | . . 1 Energy Discharges 4 | . . 4 Data Loss (minor) 2 | . . 2 Misfires 1 | . . 1 Alerts 2 | . . 2 Overload Shots . | . . . Overflow Damage . | . . . Projectiles . | . . . Explosions . | . . . Melee . | . . . Knockbacks 1 | . . 1 Impact . | . . . Kinetic 1 | . . 1 Secondary . | . . . Self-Inflicted Damage 15 | . . 15 Shots 2 | . . 2 Rammed . | . . . Targets Rammed . | . . . Kicked . | . . . Crushed . | . . . Highest Temperature 233 | . . 233 Average Temperature 120 | . . 120 Received Heat Transfer 135 | . 18 117 Siege Activations . | . . . Martial Activations . | . . . Shielding Activations . | . . . Robots Disrupted . | . . . Combat Hostiles . | . . . Robots Corrupted . | . . . Combat Hostiles . | . . . Parts Fried . | . . . Impact Corruptions . | . . . Robots Melted . | . . . Combat Hostiles . | . . . Parts Melted . | . . . Heat Transferred . | . . . Parts Sabotaged . | . . . Parts Stolen . | . . . Parts Stripped . | . . . Power Chain Reactions . | . . . Alert | -11 -10 -10 ------- Run | Yrd Mat Sub Maximum Alert Level . | . . . Low Security (%) 100 | 100 100 . Level 1 . | . . . Level 2 . | . . . Level 3 . | . . . Level 4 . | . . . Level 5 . | . . . High Security . | . . . Max Security . | . . . Peak Influence 10 | 10 7 . Initial . | . . . Average . | 1 . . Influence Increases 212 | 30 7 175 Destroy 0b10 Robot/C 140 | . . 140 Destroy 0b10 Robot/NC 35 | 30 5 . Destroy Leader 22 | . 2 20 Lose Combat Pursuer 15 | . . 15 Influence Decreases 197 | 30 7 160 Time Decay 177 | 30 7 140 Lost Part 20 | . . 20 Squads Dispatched 1 | . 1 . Investigation . | . . . Extermination . | . . . Reinforcement 1 | . 1 . Assault . | . . . Garrison . | . . . Intercept . | . . . Searches Triggered . | . . . Construction Impeded . | . . . Haulers Reinforced . | . . . Active Scanning Responses . | . . . Cargo Convoy Interrupts . | . . . Stealth | -11 -10 -10 --------- Run | Yrd Mat Sub Distress Signals 1 | . 1 . Communications Jammed . | . . . Distress Signals . | . . . Times Spotted 28 | . 4 24 Peak Tracking Total 4 | . 3 4 Tactical Retreats 1 | . . 1 Traps | -11 -10 -10 ------- Run | Yrd Mat Sub Traps Triggered 1 | . 1 . Indirectly . | . . . Trap Hack Attempts . | . . . Triggered . | . . . Disarmed . | . . . Reprogrammed . | . . . Reused 3 | . . 3 Traps Extracted . | . . . Installed 4 | . . 4 Triggered . | . . . Most Traps Carried 2 | . . 2 Machines | -11 -10 -10 ---------- Run | Yrd Mat Sub Machines Disabled 1 | . . 1 Max in Single Turn 1 | . . 1 Machines Repaired . | . . . Machines Dismantled . | . . . Machines Sabotaged . | . . . Overloaded Fab Kills . | . . . Hacking | -11 -10 -10 --------- Run | Yrd Mat Sub Machines Accessed 2 | . . 2 Terminals . | . . . Fabricators . | . . . Repair Stations . | . . . Recycling Units . | . . . Scanalyzers . | . . . Garrison Access . | . . . Total Hacks 5 | . . 5 Successful 5 | . . 5 Failed . | . . . Catastrophic . | . . . Database Lockouts . | . . . Manual . | . . . Terminals . | . . . Fabricators . | . . . Repair Stations . | . . . Recycling Units . | . . . Scanalyzers . | . . . Garrison Access . | . . . Terminal Hacks 5 | . . 5 Record 4 | . . 4 Proto ID Catalog 1 | . . 1 Fabricator Hacks . | . . . Repair Station Hacks . | . . . Recycling Unit Hacks . | . . . Scanalyzer . | . . . Garrison Access Hacks . | . . . Unauthorized Hacks . | . . . Terminals . | . . . Fabricators . | . . . Repair Stations . | . . . Recycling Units . | . . . Scanalyzers . | . . . Garrison Access . | . . . Data Cores Recovered . | . . . Used . | . . . Hacking Detections . | . . . Full Trace Events . | . . . Feedback Events . | . . . Feedback Blocked . | . . . Robot Schematics Acquired . | . . . Robots Built . | . . . Authchips . | . . . Time . | . . . Total Robot Build Rating . | . . . Part Schematics Acquired . | . . . Parts Built . | . . . Authchips . | . . . Time . | . . . Total Part Build Rating . | . . . Part Studies Acquired . | . . . Parts Repaired . | . . . Time . | . . . Parts Recycled . | . . . Recycled Matter . | . . . Retrieved Matter . | . . . Retrieved Components . | . . . Parts Scanalyzed . | . . . Part Schematics Acquired . | . . . Parts Damaged . | . . . Bothacking | -11 -10 -10 ------------ Run | Yrd Mat Sub Used RIF Installer . | . . . Robots Hacked . | . . . Non-combat . | . . . Combat . | . . . Robot Hacks Applied . | . . . Relay Couplers Released . | . . . Fabnet Peak Effective % . | . . . Robots Rewired . | . . . Allies Hacked . | . . . Hacks Repelled . | . . . Allies | -11 -10 -10 -------- Run | Yrd Mat Sub Total Allies . | . . . Largest Group . | . . . Highest-Rated Group . | . . . Highest-Rated Ally . | . . . Total Orders . | . . . Ally Attacks . | . . . Total Damage . | . . . Kills . | . . . Allies Corrupted . | . . . Allies Melted . | . . . Intel | -11 -10 -10 ------- Run | Yrd Mat Sub Active Infowar (turns) 4138 | . . 4138 Seismic 4138 | . . 4138 Robot Analysis Total . | . . . Derelict Logs Recovered 2 | . . 2 Drone Launches . | . . . Drone Recoveries . | . . . Exploration | -11 -10 -10 ------------- Run | Yrd Mat Sub Turns Passed 5129 | 252 376 4501 Spaces Moved 2865 | 122 225 2518 Core 11 | 11 . . Treads 2833 | 111 225 2497 Legs 21 | . . 21 Wheels . | . . . Hover . | . . . Flight . | . . . Fastest Speed 50 | 50 160 140 Average Speed 159 | 158 160 159 Slowest Speed 200 | 200 160 160 Overloaded Moves . | . . . Propulsion Burnouts . | . . . Robots Hopped . | . . . Potential Cave-ins . | . . . Cave-ins Triggered 1 | . . 1 Exploration Rate (%) 46 | 5 43 92 Regions Visited 2 Branch Regions 1 Pre-discovered Areas 1 | . . 1 Known Exits Taken . | . . . Unknown Exits Taken 2 | 1 1 . Scrap Searched 18 | . . 18 Spaces Dug 11 | . . 11 Terrain Destroyed 89 | . . 89 Melee 11 | . . 11 Projectile . | . . . AOE 78 | . . 78 Terrain Rammed . | . . . Walls Destroyed . | . . . Machines Disabled . | . . . Actions | -11 -10 -10 --------- Run | Yrd Mat Sub Total 3234 | 152 235 2847 Wait 150 | 3 4 143 Move 2863 | 121 224 2518 Hop . | . . . Pick Up 31 | 6 3 22 Fast Attach 9 | 6 1 2 Attach 2 | . . 2 Detach . | . . . Swap 38 | . . 38 Drop 27 | 1 . 26 Fire 69 | 15 3 51 Melee 41 | . . 41 Ram . | . . . Kick . | . . . Crush . | . . . Escape Stasis . | . . . Rewire . | . . . Trap 4 | . . 4 Miscellaneous . | . . . Route ------- -11/Scrapyard -10/Materials (discovered 3 exits: [*Mat] / [*Min] / *Sub) -10/Subcaves (discovered 3 exits: [*Mat x2] / [*Scr]) History --------- Turn | Location | Event 31 | -11/Scrapyard | Discovered new exit (range 14) 253 | -11/Scrapyard | Entered Materials 254 | -10/Materials | Met a group of wandering Federalists 311 | -10/Materials | Build established: Mutant 452 | -10/Materials | Discovered new exit (range 14) 546 | -10/Materials | Discovered new exit (range 8) 619 | -10/Materials | Discovered new exit (range 7) 629 | -10/Materials | Entered Subcaves 630 | -10/Subcaves | Continued accompanying wandering Federalists (4) 630 | -10/Subcaves | Approached by a straggling Scientist 852 | -10/Subcaves | Lost 3 allies 874 | -10/Subcaves | Wandering Federalist uncovered a shortcut to Scraptown 1281 | -10/Subcaves | Discovered new exit (range 5) 1322 | -10/Subcaves | Learned Materials terminal intel 1339 | -10/Subcaves | Disturbed a concealed Subdweller 1383 | -10/Subcaves | Disturbed a concealed Subdweller 1486 | -10/Subcaves | Build established: Scavenger-Mutant 1620 | -10/Subcaves | Crushed by falling debris 1620 | -10/Subcaves | Core integrity fell below 50% 1714 | -10/Subcaves | Visited 4L-MR0's lab 1805 | -10/Subcaves | Discovered new exit (range 10) 2515 | -10/Subcaves | Learned Materials interactive machine intel 2607 | -10/Subcaves | Ambushed by angry Subdweller bent on revenge 2834 | -10/Subcaves | Shifting Twisted Machinery released Sub. Beam Cannon 2834 | -10/Subcaves | Shifting Twisted Machinery released Flamer 3279 | -10/Subcaves | Visited Clippyterm 3284 | -10/Subcaves | Learned location of Deep Caves (-6) 3284 | -10/Subcaves | Learned Factory stockpile data 3778 | -10/Subcaves | Shifting Twisted Machinery released Battle Cannon 3943 | -10/Subcaves | Build established: Mutant 4129 | -10/Subcaves | Disturbed a concealed Subdweller 4763 | -10/Subcaves | Shifting Twisted Machinery released Flamer 4771 | -10/Subcaves | Shifting Twisted Machinery released Sub. Power Source 4791 | -10/Subcaves | A swath of the cavern ceiling suddenly collapsed 4996 | -10/Subcaves | A swath of the cavern ceiling suddenly collapsed 5120 | -10/Subcaves | Core integrity fell below 20% 5130 | -10/Subcaves | Destroyed by D0-P8G(R) with Subdweller Shrapnel Launcher Last Messages --------------- 04643_ Found Mak. Hacking Suite. 04643_ Found 53 Matter. 04650_ Searching scrap... 04650_ Found Hvy. Riot Gun. 04650_ Found 45 Matter. 04655_ Searching scrap... 04655_ Found Battle Rifle. 04655_ Found 46 Matter. Flamer falls loose from the Twisted Machinery. Sub. Power Source falls loose from the Twisted Machinery. 04781_ Dropped Broken Sub. Power Source. 04791_ Derelict Log crushed. A swath of the cavern ceiling suddenly collapses. 04809_ BP-55R(R) destroyed. 04810_ S-10 Pest springs to life. 04830_ Lgt. Assault Rifle fries itself beyond repair. A swath of the cavern ceiling suddenly collapses. 05045_ System corrupted: Component data lost. 05119_ 85-8FW(R) destroyed. 05122_ Acquired 48 matter. Map ----- +----------------------------------------------------+ | ??????????????? ### ?##########"##?????????????? | | ???????????????"" " ## #"#"##""#?????????????? | | ???????????????" " #"""""#"#?????????????? | | ????????????????# ###"#""#?????????????? | | ????????????????# ####""#?????????????? | | ????????????????# % %% ##""##??????######## | | ?????????????????# "# "#??????##"""" "" | | ?????????????????# " "##??????#"" " """ | | ?????????????????#""""" "# "#???????#"" &" " | | ???????????????#"=%"""##?# "" ##??????# """" " | | ???????????????# % ????## "### #??????#" "&" # | | ?????????????????? ?????## ""#?# ##??????# """ #"# | | ????????????????????????# "" ### #??????#" "^## | | ???????????????????????## * ##??????# ! ## | | ???????????????????????#" ""#???????#%] ## | | ???????????????????????#### "## #???????# %[ "## | | ????????????????????????### ####???????# [ "## | | ????????????????????????# |""##?????????# % ##? | | ????????????????####???###"" ""#####?????# % #?? | | ??????????????#";##" #?#"" #?????## [ #?? | | ?? #?#??????####"";;#???## ## "" ##??????######?? | | ?? # ?????#"#""""#;#??# ;# "##??????????????? | | ?##?#""#""###;####!=;## #??????????????? | | ? #"##""#"##??#; ;*] ;?# ###????????????? | | ????????# " ""####"???#;;; !##?# ##???????????? | | ????????# ##""##""##### ;@; ##?# # ##??######### | | ???????????#""###"#""# R #?### #### | | ???????????###""## #; ;;;;; ;#??# | | ????????????#"##"""##;### ####??# ## | | ????????????##""#"""#"#?####?????# #### ### ## | | ?????????????#"#"""#"##??????????###??######?# #? | | ?????????????##"##""##???????????????????????####? | | ??????????????#######????????????????????????????? | | ?????????????????????????????????????????????????? | | ?????????????????????????????????????????????????? | | ?????????????????????????????????????????????????? | | ?????????????????????????????????????????????????? | | ?????????????????????????????????????????????????? | | ?????????????????????????????????????????????????? | | ?????????????????????????????????????????????????? | | ?????????????????????????????????????????????????? | | ?????????????????????????????????????????????????? | | ?????????????????????????????????????????????????? | | ?????????????????????????????????????????????????? | | ?????????????????????????????????????????????????? | | ?????????????????????????????????????????????????? | | ?????????????????????????????????????????????????? | | | | | | | +----------------------------------------------------+ Best States ------------- Heat Dissipation 25 Energy Generation 15 Energy Capacity 250 Matter Stores 400 Matter Capacity 400 Sight Range 16 Terrain Scan Density 10 Armor Coverage 100 Evasion (%) 55 Recoil Reduction 2 Item Schematics ----------------- None Robot Schematics ------------------ None Fabricated ------------ Nothing Repaired ---------- Nothing Studied --------- None Alien Tech Used ----------------- None Achievements -------------- None Challenges ------------ None Game ------ Seed ChargeMasterExpander Manual? 0 Play Time 00:26:23 Cumulative 490.5 hours Start 2026.09.14 @ 19:36:33 End 2026.09.14 @ 20:08:11 Sessions 1 Manual Loads 0 Difficulty Rogue Special Mode None Game No. 363 Rogue 363 Adventurer 0 Explorer 0 Win Type - Total 10 Types 4/0/4/2/0/0/0/0/0/0 Lore% 63 Gallery% 72 Achievement% 59 Wizard Run 0 Options --------- Layout 2 ASCII 0 Keyboard 1 Movement Vi Keybinds 0 Fullscreen 2 Font 32/Smallcaps Map View 77x44 Zoom Use 0% Tactical HUD 1 Map Filters NONE Filters NONE Steam 1 RUN: a0fcdd77-8603-4d81-9705-dc68e295cbb7